Cogmind - Beta 13 @@@ ROGUE MODE // 2024.06.14 @ 19:57:20 Player: Jason Result: Destroyed by OO-76O(R) with Subdweller Laser Performance ------------- Evolutions (0) 0 Regions Visited (3) 600 Robots Destroyed (26) 130 Value Destroyed (430) 430 Prototype IDs (0) 0 Alien Tech Used (0) 0 Bonus (-106) -106 TOTAL SCORE: 1054 Bonus ------- High Alert Combat Kills 4 Follower Combat Kills 60 Friendly Fire -170 Cogmind --------- Core Integrity 0/250 Matter 276/300 Energy 250/250 System Corruption 0% Temperature Cool (6) Movement Walking (190) Ox1 Location -10/Subcaves Parts ------- > --- POWER (1) -------- Ion Engine > --- PROPULSION (2) --- Aluminum Leg Aluminum Leg > --- UTILITY (2) ------ Medium Storage Unit > --- WEAPON (2) ------- Subdweller Machine Gun Slug Cannon > --- INVENTORY (10) --- Makeshift Power Source Aluminum Leg Aluminum Leg Aluminum Leg Improved Terrain Scanner Small Laser Barrage Gun Battle Cannon Hammer Makeshift Spear Peak State ------------ > --- POWER ------------ Subdweller Power Source > --- PROPULSION ------- Aluminum Leg Aluminum Leg > --- UTILITY ---------- Medium Storage Unit > --- WEAPON ----------- Slug Cannon Makeshift Spear > --- INVENTORY -------- Ion Engine Aluminum Leg Aluminum Leg Aluminum Leg Improved Terrain Scanner Small Laser Subdweller Machine Gun Battle Cannon Hammer [Rating: 14] Favorites ----------- Power Ion Engine Engine Ion Engine Propulsion Aluminum Leg Leg Aluminum Leg Utility Seismic Detector Device Seismic Detector Storage Medium Storage Unit Weapon Light Assault Rifle Energy Gun Small Laser Ballistic Gun Light Assault Rifle Ballistic Cannon Slug Cannon Launcher Grenade Launcher Impact Weapon Hammer Piercing Weapon Makeshift Spear Build | -11 -10 -10 -10 ------- Run | Yrd Mat Min Sub Slots Evolved . | . . . . Power . | . . . . Propulsion . | . . . . Utility . | . . . . Weapon . | . . . . Parts Attached 31 | 7 2 7 15 Power 5 | 1 . 1 3 Engine 5 | 1 . 1 3 Core . | . . . . Reactor . | . . . . Propulsion 7 | 2 1 . 4 Treads . | . . . . Leg 7 | 2 1 . 4 Wheel . | . . . . Hover . | . . . . Flight . | . . . . Utility 3 | 2 . 1 . Device 1 | 1 . . . Storage 2 | 1 . 1 . Processor . | . . . . Hackware . | . . . . Protection . | . . . . Artifact . | . . . . Weapon 16 | 2 1 5 8 Energy Gun 1 | 1 . . . Energy Cannon . | . . . . Ballistic Gun 7 | 1 1 2 3 Ballistic Cannon 1 | . . . 1 Launcher 4 | . . 3 1 Special Weapon . | . . . . Impact Weapon 2 | . . . 2 Slashing Weapon . | . . . . Piercing Weapon 1 | . . . 1 Special Melee Weapon . | . . . . Unidentified Prototypes . | . . . . Parts Lost 8 | . . 1 7 Power 1 | . . 1 . Propulsion 3 | . . . 3 Utility 1 | . . . 1 Weapon 3 | . . . 3 Highest Loss Streak 3 | . . 1 3 To Critical Strikes . | . . . . Average Slot Usage (%) 93 | . 100 99 88 Engine 13 | . 14 13 14 Leg 25 | . 28 28 24 Device 10 | . 14 14 7 Storage 14 | . 14 14 14 Ballistic Gun 13 | . 22 19 7 Ballistic Cannon 3 | . . . 5 Launcher 2 | . . 8 . Piercing Weapon 7 | . . . 12 Naked Turns . | . . . . Heaviest Build 26 | 13 13 20 26 Greatest Support 20 | 20 20 20 20 Greatest Overweight (x) 2 | 1 . . 2 Average Overweight (x) . | . . . . Largest Inventory Capacity 10 | 8 8 10 10 Average Capacity 9 | 7 8 8 10 Most Carried 10 | 5 8 9 10 Average Carried 8 | 3 7 8 9 Final Capacity 10 | 8 8 10 10 Final Carried 10 | 5 8 9 10 Class Distribution -------------------- 89% | Mutant 10% | Scavenger-Mutant Dominant Class ---------------- Mutant | -10/Materials Mutant | -10/Mines Mutant | -10/Subcaves Resources | -11 -10 -10 -10 ----------- Run | Yrd Mat Min Sub Matter Collected 633 | 271 33 161 168 Remotely . | . . . . Salvage Created 517 | 15 88 255 159 Parts 47 | 4 8 20 15 Haulers Intercepted . | . . . . Recyclers Shooed . | . . . . Parts Field Recycled . | . . . . Retrieved Matter . | . . . . Parts Self-Destructed 10 | . . . 10 Prevented . | . . . . Kills | -11 -10 -10 -10 ------- Run | Yrd Mat Min Sub Combat Hostiles Destroyed 20 | . 4 10 6 Melee 2 | . . . 2 Guns 6 | . 4 2 . AOE 12 | . . 8 4 Classes Destroyed 7 | 1 2 3 1 Worker 1 | . . 1 . Builder 1 | . . 1 . Tunneler 1 | 1 . . . Recycler 2 | . . 2 . Swarmer 15 | . 3 8 4 Grunt 4 | . 1 2 1 Subdweller 2 | . . . 2 Best Kill Streak 6 | 1 3 6 4 Combat Bots Only 4 | . 3 3 4 Max Kills in Single Turn 5 | 1 1 5 2 Gunslinging . | . . . . Exploded 2 | . . 2 2 Melee 1 | . . . 1 Uniques/NPCs Destroyed . | . . . . Combat | -11 -10 -10 -10 -------- Run | Yrd Mat Min Sub Hostile Shots Fired 119 | . 17 27 75 Missed 33 | . 6 7 20 Damage Taken 1103 | . 88 231 784 Core 266 | . 14 25 227 Absorbed by Shields . | . . . . Core Remaining (%) 100 | 100 . . . Volleys Fired 51 | 1 10 16 24 Largest 2 | 2 2 2 2 Hottest 78 | 60 60 40 78 Shots Fired 72 | 2 19 24 27 Gun 59 | 2 19 16 22 Cannon 2 | . . . 2 Launcher 11 | . . 8 3 Special . | . . . . Kinetic 54 | 1 13 16 24 Thermal 7 | 1 6 . . Explosive 11 | . . 8 3 Electromagnetic . | . . . . Robot Hit Streak 4 | 1 4 4 4 Robot Miss Streak 4 | 1 4 1 3 Penetration Max . | . . . . Secondary Targets 1 | . 1 . . Max Gunslinging Chain 1 | . 1 . . Shots Hit Robots 41 | 1 9 14 17 Core Hits 39 | 1 6 22 10 Critical Kills . | . . . . Critical Parts Destroyed . | . . . . Critical Strikes . | . . . . Melee Attacks 16 | . . . 16 Impact 2 | . . . 2 Slashing . | . . . . Piercing 14 | . . . 14 Sneak Attacks . | . . . . Combat Hostiles . | . . . . Follow-up Attacks . | . . . . Damage Inflicted 1282 | 11 89 707 475 Guns 264 | 11 89 94 70 Cannons . | . . . . Explosions 905 | . . 613 292 Melee 113 | . . . 113 Ramming . | . . . . Kinetic 208 | . 44 94 70 Thermal 220 | 11 45 164 . Explosive 741 | . . 449 292 Electromagnetic . | . . . . Impact . | . . . . Slashing . | . . . . Piercing 113 | . . . 113 Highest Corruption . | . . . . Average Corruption . | . . . . Corruption Purged . | . . . . Corruption Blocked . | . . . . Overload Shots . | . . . . Overflow Damage 7 | . . 7 . Projectiles . | . . . . Explosions 7 | . . 7 . Melee . | . . . . Knockbacks . | . . . . Impact . | . . . . Kinetic . | . . . . Secondary . | . . . . Self-Inflicted Damage 102 | . . 19 83 Shots 4 | . . 1 3 Rammed . | . . . . Targets Rammed . | . . . . Kicked . | . . . . Crushed . | . . . . Highest Temperature 271 | 20 40 9 271 Average Temperature 42 | 15 14 6 132 Received Heat Transfer 699 | . 12 78 609 Siege Activations . | . . . . Robots Corrupted . | . . . . Combat Hostiles . | . . . . Parts Fried . | . . . . Impact Corruptions . | . . . . Robots Melted . | . . . . Combat Hostiles . | . . . . Parts Melted . | . . . . Heat Transferred 325 | 25 100 200 . Parts Sabotaged . | . . . . Parts Stolen . | . . . . Parts Stripped . | . . . . Power Chain Reactions . | . . . . Alert | -11 -10 -10 -10 ------- Run | Yrd Mat Min Sub Peak Influence 475 | 5 135 475 . Initial 52 | . 3 52 . Average 196 | 2 77 277 . Maximum Alert Level 2 | . . 2 . Low Security (%) 50 | 100 100 22 . Level 1 39 | . . 62 . Level 2 9 | . . 15 . Level 3 . | . . . . Level 4 . | . . . . Level 5 . | . . . . High Security . | . . . . Max Security . | . . . . Squads Dispatched 1 | . 1 . . Investigation . | . . . . Extermination . | . . . . Reinforcement 1 | . 1 . . Assault . | . . . . Garrison . | . . . . Intercept . | . . . . Searches Triggered . | . . . . Construction Impeded . | . . . . Haulers Reinforced . | . . . . Active Scanning Responses . | . . . . Cargo Convoy Interrupts . | . . . . Stealth | -11 -10 -10 -10 --------- Run | Yrd Mat Min Sub Distress Signals . | . . . . Communications Jammed . | . . . . Distress Signals . | . . . . Times Spotted 62 | . 7 12 43 Peak Tracking Total 6 | . 3 3 6 Tactical Retreats 4 | . . 2 2 Traps | -11 -10 -10 -10 ------- Run | Yrd Mat Min Sub Traps Triggered . | . . . . Indirectly . | . . . . Trap Hack Attempts . | . . . . Triggered . | . . . . Disarmed . | . . . . Reprogrammed . | . . . . Reused . | . . . . Traps Extracted . | . . . . Installed . | . . . . Triggered . | . . . . Machines | -11 -10 -10 -10 ---------- Run | Yrd Mat Min Sub Machines Disabled 6 | . . 6 . Max in Single Turn 6 | . . 6 . Machines Repaired . | . . . . Machines Dismantled . | . . . . Machines Sabotaged . | . . . . Overloaded Fab Kills . | . . . . Hacking | -11 -10 -10 -10 --------- Run | Yrd Mat Min Sub Machines Accessed 3 | . 3 . . Terminals 2 | . 2 . . Fabricators . | . . . . Repair Stations . | . . . . Recycling Units 1 | . 1 . . Scanalyzers . | . . . . Garrison Access . | . . . . Total Hacks 6 | . 6 . . Successful 4 | . 4 . . Failed 2 | . 2 . . Catastrophic . | . . . . Database Lockouts . | . . . . Manual 2 | . 2 . . Terminals 5 | . 5 . . Fabricators . | . . . . Repair Stations . | . . . . Recycling Units 1 | . 1 . . Scanalyzers . | . . . . Garrison Access . | . . . . Terminal Hacks 1 | . 1 . . Branch Access Points 1 | . 1 . . Fabricator Hacks . | . . . . Repair Station Hacks . | . . . . Recycling Unit Hacks 1 | . 1 . . Retrieve Components 1 | . 1 . . Scanalyzer . | . . . . Garrison Access Hacks . | . . . . Unauthorized Hacks 2 | . 2 . . Terminals 2 | . 2 . . Assimilate 1 | . 1 . . Botnet 1 | . 1 . . Fabricators . | . . . . Repair Stations . | . . . . Recycling Units . | . . . . Scanalyzers . | . . . . Garrison Access . | . . . . Data Cores Recovered . | . . . . Used . | . . . . Hacking Detections 2 | . 2 . . Full Trace Events . | . . . . Feedback Events . | . . . . Feedback Blocked . | . . . . Robot Schematics Acquired . | . . . . Robots Built . | . . . . Authchips . | . . . . Time . | . . . . Total Robot Build Rating . | . . . . Part Schematics Acquired . | . . . . Parts Built . | . . . . Authchips . | . . . . Time . | . . . . Total Part Build Rating . | . . . . Parts Repaired . | . . . . Time . | . . . . Parts Recycled . | . . . . Recycled Matter . | . . . . Retrieved Matter . | . . . . Retrieved Components 1 | . 1 . . Parts Scanalyzed . | . . . . Part Schematics Acquired . | . . . . Parts Damaged . | . . . . Bothacking | -11 -10 -10 -10 ------------ Run | Yrd Mat Min Sub Used RIF Installer . | . . . . Robots Hacked . | . . . . Non-combat . | . . . . Combat . | . . . . Robot Hacks Applied . | . . . . Relay Couplers Released . | . . . . Fabnet Peak Effective % . | . . . . Robots Rewired . | . . . . Allies Hacked . | . . . . Hacks Repelled . | . . . . Allies | -11 -10 -10 -10 -------- Run | Yrd Mat Min Sub Total Allies 3 | . . 3 . Largest Group 3 | . . 3 3 Highest-Rated Group 40 | . . 40 40 Highest-Rated Ally 16 | . . 16 16 Total Orders . | . . . . Ally Attacks 12 | . . . 12 Total Damage 77 | . . . 77 Kills 2 | . . . 2 Allies Corrupted . | . . . . Allies Melted . | . . . . Intel | -11 -10 -10 -10 ------- Run | Yrd Mat Min Sub Robot Analysis Total . | . . . . Derelict Logs Recovered 2 | . . 2 . Drone Launches . | . . . . Drone Recoveries . | . . . . Exploration | -11 -10 -10 -10 ------------- Run | Yrd Mat Min Sub Turns Passed 2254 | 99 268 635 1252 Spaces Moved 1341 | 72 178 480 611 Core 11 | 11 . . . Treads . | . . . . Legs 1330 | 61 178 480 611 Wheels . | . . . . Hover . | . . . . Flight . | . . . . Fastest Speed 50 | 50 120 120 120 Average Speed 149 | 110 120 120 186 Slowest Speed 260 | 190 120 120 260 Overloaded Moves . | . . . . Propulsion Burnouts . | . . . . Robots Hopped . | . . . . Cave-ins Triggered . | . . . . Exploration Rate (%) 40 | 6 31 84 39 Regions Visited 3 Branch Regions 2 Pre-discovered Areas 2 | . . 1 1 Known Exits Taken 1 | . 1 . . Unknown Exits Taken 2 | 1 . 1 . Scrap Searched 4 | . . 1 3 Spaces Dug . | . . . . Terrain Destroyed 91 | . . 66 25 Melee . | . . . . Projectile 1 | . . . 1 AOE 90 | . . 66 24 Terrain Rammed . | . . . . Walls Destroyed . | . . . . Machines Disabled . | . . . . Actions | -11 -10 -10 -10 --------- Run | Yrd Mat Min Sub Total 1501 | 86 218 516 681 Wait 35 | 2 17 9 7 Move 1338 | 71 177 479 611 Hop . | . . . . Pick Up 18 | 5 6 3 4 Fast Attach 12 | 7 1 . 4 Attach 6 | . . 1 5 Detach 3 | . 1 . 2 Swap 13 | . 1 6 6 Drop 10 | . 5 2 3 Fire 51 | 1 10 16 24 Melee 15 | . . . 15 Ram . | . . . . Kick . | . . . . Crush . | . . . . Escape Stasis . | . . . . Rewire . | . . . . Trap . | . . . . Miscellaneous . | . . . . Route ------- -11/Scrapyard -10/Materials (discovered 2 exits: *Min x2) -10/Mines (discovered 2 exits: [*Mat] / [*Sub]) -10/Subcaves (discovered 2 exits: [*Mat] / [*Rec]) History --------- Turn | Location | Event 26 | -11/Scrapyard | Discovered new exit (range 16) 100 | -11/Scrapyard | Entered Materials 301 | -10/Materials | Build established: Mutant 338 | -10/Materials | Identified exit to Mines 368 | -10/Materials | Entered Mines 379 | -10/Mines | Met a Derelict bent on vengeance 382 | -10/Mines | Discovered new exit (range 14) 435 | -10/Mines | Learned 4 Materials zone layouts 462 | -10/Mines | Learned location of Storage (-9) 907 | -10/Mines | A weapon hastily lodged in a ceiling crevice suddenly fell to the ground 952 | -10/Mines | Assisted by bots powering up and referring to "LRC-V3" 979 | -10/Mines | Discovered new exit (range 14) 1003 | -10/Mines | Entered Subcaves 1003 | -10/Subcaves | Accompanied by 3 allies 1127 | -10/Subcaves | Disturbed a concealed Subdweller 1131 | -10/Subcaves | Core integrity fell below 50% 1163 | -10/Subcaves | Lost 3 parts (1n2w) 1246 | -10/Subcaves | Discovered new exit (range 11) 1258 | -10/Subcaves | Shifting Twisted Machinery released Sub. Power Source 1371 | -10/Subcaves | Shifting Twisted Machinery released Battle Cannon 1541 | -10/Subcaves | Learned location of Zion (-7) 1541 | -10/Subcaves | Met a Zionite searching for "candidates" 1684 | -10/Subcaves | Shifting Twisted Machinery released Sub. Power Source 1698 | -10/Subcaves | Shifting Twisted Machinery released Mak. System Shield 1698 | -10/Subcaves | Discovered new exit (range 13) 1706 | -10/Subcaves | Core integrity fell below 20% 2255 | -10/Subcaves | Destroyed by OO-76O(R) with Subdweller Laser Last Messages --------------- 01710_ Seismic Detector destroyed. 01713_ Lgt. Ion Engine fries itself beyond repair. 01713_ The unstable cave ceiling collapses. 01716_ Subatomizers dissect the Flight Unit. 01717_ Lgt. Ion Engine fries itself beyond repair. 01718_ The unstable cave ceiling collapses. 01719_ Flight Unit fries itself beyond repair. 01727_ Searching scrap... 01727_ Found Sub. Beam Cannon. 01727_ Found Slug Cannon. 01727_ Found 23 Matter. 01728_ Acquired 23 matter. 01731_ Acquired Slug Cannon. 01820_ Acquired Mak. Power Source. 01917_ Acquired 8 matter. 01982_ Sub. Power Source shoots sparks and powers down. 01984_ Dropped Broken Sub. Power Source. 02037_ Acquired 10 matter. 02164_ Acquired 4 matter. 02206_ Acquired Barrage Gun. Map ----- +----------------------------------------------------+ | ?????????# # ##????# ### | | ?????????####### ###?????# ###?# #### | | ??????????????# #??????# #???## ##???# | | ??????????????# #??????# #????###?????# | | ??????????????## % #??????## ##????????????? | | ??????????##### ##??????## ##?????????????? | | ??????????# ##?????## ###??????????????? | | ??????????# #?##### ##????????????????? | | ??????????### ### #######????????????? | | ???????????## ##% ##???????????? | | ??????????## % #???????????? | | ??????????# ##### #???????????? | | ??????????# ##??## #???????????? | | ?????????## #???# #???????????? | | ????????## ##?## ## ##??????????? | | ????????# ### #?# #??????????? | | ????????#### ## "" #?# #??????????? | | ???????????# #########" ### ##?????????? | | ???????????####???????##" ## #???????### | | ???????????????????????## #####???## # | | ????????????????????????# #### ##### | | ??????????????????????### ### ## | | ??????????????????????# ## ## | | ??????????????????????# #### ##? | | ??????????????????????## ##??## ####?# | | ???????????????????????#;@ #????## ##?# | | ??????????????????????# #????# ## | | ?????????????????????"R ##???# ## | | ???????????????????""" ???# ##### | | ?????????????????? ### ###??#####???## | | ????????????????? ??###?????????????## | | ????????????????# ????????????????????## ### | | ????????????????### ??????????????????????## ##?## | | ?????????????????? ????????????????????????###???? | | ?????????????????#???????????????????????????????? | | ?????????????????????????????????????????????????? | | ?????????????????????????????????????????????????? | | ?????????????????????????????????????????????????? | | ?????????????????????????????????????????????????? | | ?????????????????????????????????????????????????? | | ?????????????????????????????????????????????????? | | ?????????????????????????????????????????????????? | | ?????????????????????????????????????????????????? | | ?????????????????????????????????????????????????? | | ?????????????????????????????????????????????????? | | ?????????????????????????????????????????????????? | | ?????????????????????????????????????????????????? | | ?????????????????????????????????????????????????? | | ?????????????????????????????????????????????????? | | ?????????????????????????????????????????????????? | +----------------------------------------------------+ Best States ------------- Heat Dissipation 25 Energy Generation 15 Energy Capacity 250 Matter Stores 300 Matter Capacity 300 Sight Range 16 Terrain Scan Density 10 Evasion (%) 55 Item Schematics ----------------- None Robot Schematics ------------------ None Fabricated ------------ Nothing Alien Tech Used ----------------- None Achievements -------------- None Challenges ------------ None Game ------ Seed MissileCooledFilter Manual? 0 Play Time 00:15:46 Cumulative 102.9 hours Start 2024.06.14 @ 19:33:07 End 2024.06.14 @ 19:57:20 Sessions 1 Manual Loads 0 Difficulty Rogue Special Mode None Game No. 76 Rogue 76 Adventurer 0 Explorer 0 Win Type - Total 0 Types 0/0/0/0/0/0/0/0/0 Lore% 36 Gallery% 48 Achievement% 36 Wizard Run 0 Options --------- Layout 2 ASCII 1 Keyboard 1 Movement Arrows Keybinds 0 Fullscreen 0 Font 20/Terminus Map View 59x48 Zoom Use 0% Tactical HUD 1 Map Filters NONE Filters NONE Steam 1 RUN: 8e164027-aab6-425b-b08c-99a2b14df632